[Event "Live Chess"]
[Site "Chess.com"]
[Date "2024.06.02"]
[Round "-"]
[White "Duke_of_Bebington"]
[Black "NebodarMatevich"]
[Result "1/2-1/2"]
[WhiteElo "1652"]
[BlackElo "1566"]
[TimeControl "300"]
[EndTime "16:06:00 PDT"]
[Termination "Game drawn by repetition"]

1. e4 {[%clk 0:04:57.5]} 1... d5 {[%clk 0:04:59.1]} 2. exd5 {[%clk 0:04:56.2]}
2... Qxd5 {[%clk 0:04:59]} 3. Nf3 {[%clk 0:04:53.5]} 3... Nf6 {[%clk 0:04:56.9]}
4. d4 {[%clk 0:04:51.9]} 4... Nc6 {[%clk 0:04:54.8]} 5. c3 {[%clk 0:04:44.1]}
5... Bg4 {[%clk 0:04:53.1]} 6. Be2 {[%clk 0:04:42.7]} 6... O-O-O {[%clk
0:04:50.3]} 7. O-O {[%clk 0:04:39.3]} 7... e5 {[%clk 0:04:49.9]} 8. Nxe5 {[%clk
0:04:28.4]} 8... Bxe2 {[%clk 0:04:46.9]} 9. Qxe2 {[%clk 0:04:27.1]} 9... Nxe5
{[%clk 0:04:46.2]} 10. dxe5 {[%clk 0:04:25.8]} 10... Ne4 {[%clk 0:04:32.8]} 11.
Be3 {[%clk 0:04:16.4]} 11... a6 {[%clk 0:04:22.7]} 12. Na3 {[%clk 0:04:06.6]}
12... Qxe5 {[%clk 0:04:21.5]} 13. Rfe1 {[%clk 0:03:53.4]} 13... Qf5 {[%clk
0:03:52.5]} 14. Rad1 {[%clk 0:03:44.4]} 14... Bd6 {[%clk 0:03:50.4]} 15. Bd4
{[%clk 0:03:27.2]} 15... Nf6 {[%clk 0:03:41.7]} 16. Bxf6 {[%clk 0:03:21.9]}
16... gxf6 {[%clk 0:03:39.3]} 17. Nc4 {[%clk 0:03:19.3]} 17... Rhe8 {[%clk
0:03:22.7]} 18. Qxe8 {[%clk 0:03:06]} 18... Rxe8 {[%clk 0:03:21.3]} 19. Rxe8+
{[%clk 0:03:04.1]} 19... Kd7 {[%clk 0:03:21]} 20. Nxd6 {[%clk 0:02:47.2]} 20...
cxd6 {[%clk 0:03:19.9]} 21. Rde1 {[%clk 0:02:46.6]} 21... Qc2 {[%clk 0:03:15.1]}
22. R8e2 {[%clk 0:02:42.9]} 22... Qd3 {[%clk 0:03:09.6]} 23. Re7+ {[%clk
0:02:40.6]} 23... Kc6 {[%clk 0:03:08.6]} 24. h3 {[%clk 0:02:33.5]} 24... Qd2
{[%clk 0:03:07.1]} 25. R7e2 {[%clk 0:02:31.9]} 25... Qd5 {[%clk 0:03:01.3]} 26.
b3 {[%clk 0:02:26.3]} 26... b5 {[%clk 0:02:59.8]} 27. Re7 {[%clk 0:02:21.7]}
27... Qd2 {[%clk 0:02:58.9]} 28. R7e2 {[%clk 0:02:19.7]} 28... Qxc3 {[%clk
0:02:57.1]} 29. Re7 {[%clk 0:02:11]} 29... Qd2 {[%clk 0:02:52.7]} 30. R1e2
{[%clk 0:02:10]} 30... Qd1+ {[%clk 0:02:51.4]} 31. Kh2 {[%clk 0:02:09.1]} 31...
Qd5 {[%clk 0:02:46.1]} 32. Rc2+ {[%clk 0:02:06.6]} 32... Kb6 {[%clk 0:02:42.5]}
33. Rcc7 {[%clk 0:01:58.9]} 33... Ka5 {[%clk 0:02:41.7]} 34. Rxf7 {[%clk
0:01:56.5]} 34... Qe5+ {[%clk 0:02:41]} 35. g3 {[%clk 0:01:53.4]} 35... Qd4
{[%clk 0:02:37.6]} 36. Kg2 {[%clk 0:01:46.8]} 36... Qe4+ {[%clk 0:02:35.2]} 37.
Kh2 {[%clk 0:01:44.6]} 37... Qd4 {[%clk 0:02:33.7]} 38. Kg1 {[%clk 0:01:43.3]}
38... Qd1+ {[%clk 0:02:31.9]} 39. Kg2 {[%clk 0:01:42.7]} 39... Qd5+ {[%clk
0:02:30.8]} 40. Kg1 {[%clk 0:01:40.3]} 40... Qd1+ {[%clk 0:02:28.2]} 41. Kh2
{[%clk 0:01:33.8]} 41... Qd4 {[%clk 0:02:24.8]} 1/2-1/2

[Event "Live Chess"]
[Site "Chess.com"]
[Date "2024.06.02"]
[Round "-"]
[White "MagnersCarlsberg2870"]
[Black "Queensandpawns"]
[Result "0-1"]
[WhiteElo "1765"]
[BlackElo "2321"]
[TimeControl "300"]
[EndTime "16:06:19 PDT"]
[Termination "Queensandpawns won by resignation"]

1. Nf3 {[%clk 0:04:56.5]} 1... e5 {[%clk 0:04:59.9]} 2. Nxe5 {[%clk 0:04:54.7]}
2... Nc6 {[%clk 0:04:59.5]} 3. Nxc6 {[%clk 0:04:53.1]} 3... dxc6 {[%clk
0:04:59.4]} 4. e4 {[%clk 0:04:51]} 4... Nf6 {[%clk 0:04:53.2]} 5. e5 {[%clk
0:04:48.4]} 5... Ne4 {[%clk 0:04:51.9]} 6. Qf3 {[%clk 0:04:44.2]} 6... Ng5
{[%clk 0:04:47.3]} 7. Qb3 {[%clk 0:04:38.3]} 7... Bc5 {[%clk 0:04:38.8]} 8. c3
{[%clk 0:04:29.4]} 8... Bxf2+ {[%clk 0:04:13.5]} 9. Kxf2 {[%clk 0:04:25.5]} 9...
Ne4+ {[%clk 0:04:13.4]} 10. Ke1 {[%clk 0:04:21.2]} 10... Qh4+ {[%clk 0:04:11.5]}
11. g3 {[%clk 0:04:00]} 11... Nxg3 {[%clk 0:04:09]} 12. hxg3 {[%clk 0:03:58.2]}
12... Qe4+ {[%clk 0:04:08.5]} 13. Kf2 {[%clk 0:03:44.2]} 13... Qxh1 {[%clk
0:04:08.4]} 14. d4 {[%clk 0:03:42.2]} 14... Qh2+ {[%clk 0:04:00.8]} 15. Kf3
{[%clk 0:03:31.3]} 15... h5 {[%clk 0:03:44.2]} 16. Bf4 {[%clk 0:03:27]} 16...
Bg4+ {[%clk 0:03:42.1]} 17. Ke3 {[%clk 0:03:22.1]} 17... Qh1 {[%clk 0:03:38.8]}
18. Nd2 {[%clk 0:03:19.2]} 18... Qg1+ {[%clk 0:03:35.9]} 19. Kd3 {[%clk
0:03:12.7]} 19... Bf5+ {[%clk 0:03:34]} 20. Kc4 {[%clk 0:03:04.9]} 20... Qh1
{[%clk 0:03:26.1]} 21. Qxb7 {[%clk 0:02:55.1]} 21... Qd5+ {[%clk 0:03:23.2]} 22.
Kb4 {[%clk 0:02:53.4]} 22... c5+ {[%clk 0:03:22.6]} 0-1

[Event "Live Chess"]
[Site "Chess.com"]
[Date "2024.06.02"]
[Round "-"]
[White "GwaryTek"]
[Black "upoe610"]
[Result "1-0"]
[WhiteElo "1930"]
[BlackElo "2185"]
[TimeControl "300"]
[EndTime "16:06:21 PDT"]
[Termination "GwaryTek won by resignation"]

1. d4 {[%clk 0:04:57.2]} 1... Nf6 {[%clk 0:04:59.1]} 2. c4 {[%clk 0:04:54.1]}
2... c5 {[%clk 0:04:58.2]} 3. d5 {[%clk 0:04:52.7]} 3... b5 {[%clk 0:04:57.2]}
4. cxb5 {[%clk 0:04:52.6]} 4... a6 {[%clk 0:04:56.3]} 5. b6 {[%clk 0:04:52.1]}
5... e6 {[%clk 0:04:55.1]} 6. Nc3 {[%clk 0:04:52]} 6... Nxd5 {[%clk 0:04:54.4]}
7. Nxd5 {[%clk 0:04:50.6]} 7... exd5 {[%clk 0:04:54.3]} 8. Qxd5 {[%clk 0:04:50]}
8... Nc6 {[%clk 0:04:53.8]} 9. Nf3 {[%clk 0:04:49.2]} 9... Rb8 {[%clk
0:04:51.3]} 10. Ne5 {[%clk 0:04:48]} 10... Qf6 {[%clk 0:04:42]} 11. Nxc6 {[%clk
0:04:36.7]} 11... dxc6 {[%clk 0:04:41.9]} 12. Qe4+ {[%clk 0:04:15.3]} 12... Be7
{[%clk 0:04:39.5]} 13. h4 {[%clk 0:04:11.6]} 13... Rxb6 {[%clk 0:04:38.2]} 14.
g3 {[%clk 0:03:50.9]} 14... Bf5 {[%clk 0:04:35.4]} 15. Qf3 {[%clk 0:03:40.6]}
15... O-O {[%clk 0:04:31]} 16. Bg2 {[%clk 0:03:37.2]} 16... Bd6 {[%clk
0:04:19.2]} 17. O-O {[%clk 0:03:34.4]} 17... Be5 {[%clk 0:04:14.6]} 18. Bg5
{[%clk 0:03:19.8]} 18... Qe6 {[%clk 0:04:11.6]} 19. Be3 {[%clk 0:02:31.5]} 19...
Bg4 {[%clk 0:04:07.1]} 20. Qe4 {[%clk 0:02:15.7]} 20... Bxe2 {[%clk 0:04:05]}
21. Rfe1 {[%clk 0:01:38.6]} 21... Bc4 {[%clk 0:04:01.5]} 22. Bxc5 {[%clk
0:01:37]} 22... Bxb2 {[%clk 0:02:17.7]} 23. Qxe6 {[%clk 0:00:58.6]} 23... fxe6
{[%clk 0:02:12.2]} 24. Bxb6 {[%clk 0:00:57.5]} 24... Bxa1 {[%clk 0:02:07.7]} 25.
Rxa1 {[%clk 0:00:57.4]} 25... Rb8 {[%clk 0:02:03.1]} 26. Bd4 {[%clk 0:00:49.3]}
26... Rc8 {[%clk 0:01:58.5]} 27. a3 {[%clk 0:00:41.7]} 27... c5 {[%clk
0:01:55.8]} 28. Bc3 {[%clk 0:00:38.2]} 28... Kf7 {[%clk 0:01:53.3]} 29. Rd1
{[%clk 0:00:36.7]} 29... Rc7 {[%clk 0:01:47]} 30. Rd6 {[%clk 0:00:24.8]} 30...
Bb5 {[%clk 0:01:43.1]} 31. Bh3 {[%clk 0:00:19.7]} 31... Re7 {[%clk 0:01:39.9]}
32. Rb6 {[%clk 0:00:16.8]} 32... e5 {[%clk 0:01:39.1]} 33. Bg2 {[%clk
0:00:15.2]} 33... e4 {[%clk 0:01:37.8]} 34. Kh2 {[%clk 0:00:12.3]} 34... e3
{[%clk 0:01:32.8]} 35. fxe3 {[%clk 0:00:11]} 35... Rxe3 {[%clk 0:01:31.6]} 36.
Rb7+ {[%clk 0:00:09.6]} 36... Kf8 {[%clk 0:01:27.6]} 37. Bxg7+ {[%clk
0:00:08.2]} 37... Kg8 {[%clk 0:01:26.9]} 38. Bd5+ {[%clk 0:00:07.7]} 1-0

[Event "Live Chess"]
[Site "Chess.com"]
[Date "2024.06.02"]
[Round "-"]
[White "ACM42"]
[Black "NAZRIZ1977"]
[Result "1-0"]
[WhiteElo "2163"]
[BlackElo "2152"]
[TimeControl "300"]
[EndTime "16:06:30 PDT"]
[Termination "ACM42 won by resignation"]

1. e4 {[%clk 0:04:58.5]} 1... c5 {[%clk 0:04:59]} 2. Nf3 {[%clk 0:04:57.7]} 2...
d6 {[%clk 0:04:58.3]} 3. d4 {[%clk 0:04:57]} 3... cxd4 {[%clk 0:04:57.6]} 4.
Nxd4 {[%clk 0:04:56.9]} 4... Nf6 {[%clk 0:04:57]} 5. Nc3 {[%clk 0:04:55.5]} 5...
g6 {[%clk 0:04:56.6]} 6. f4 {[%clk 0:04:54.4]} 6... a6 {[%clk 0:04:55.1]} 7. Be3
{[%clk 0:04:49.8]} 7... Nc6 {[%clk 0:04:50.7]} 8. Be2 {[%clk 0:04:46.7]} 8...
Bg7 {[%clk 0:04:49.5]} 9. O-O {[%clk 0:04:44.9]} 9... O-O {[%clk 0:04:48.6]} 10.
Nxc6 {[%clk 0:04:43.9]} 10... bxc6 {[%clk 0:04:47.6]} 11. e5 {[%clk 0:04:40.8]}
11... dxe5 {[%clk 0:04:45.5]} 12. fxe5 {[%clk 0:04:40.1]} 12... Nd5 {[%clk
0:04:44.3]} 13. Nxd5 {[%clk 0:04:39]} 13... Qxd5 {[%clk 0:04:40.7]} 14. Qxd5
{[%clk 0:04:36.3]} 14... cxd5 {[%clk 0:04:40.6]} 15. Bd4 {[%clk 0:04:33]} 15...
Bf5 {[%clk 0:04:37.1]} 16. c3 {[%clk 0:04:30.8]} 16... a5 {[%clk 0:04:34.6]} 17.
h3 {[%clk 0:04:22.8]} 17... h5 {[%clk 0:04:33.1]} 18. Bf3 {[%clk 0:04:18.5]}
18... e6 {[%clk 0:04:31]} 19. Rf2 {[%clk 0:04:13.1]} 19... Rab8 {[%clk
0:04:26.3]} 20. Rd2 {[%clk 0:04:10.8]} 20... Bh6 {[%clk 0:04:21.9]} 21. Rf2
{[%clk 0:04:00.4]} 21... a4 {[%clk 0:04:19.8]} 22. Rd1 {[%clk 0:03:55.8]} 22...
Rfc8 {[%clk 0:04:14.8]} 23. g4 {[%clk 0:03:53.5]} 23... hxg4 {[%clk 0:04:12.1]}
24. hxg4 {[%clk 0:03:53.4]} 24... Be4 {[%clk 0:04:11.2]} 25. Bxe4 {[%clk
0:03:52.2]} 25... dxe4 {[%clk 0:04:11.1]} 26. Re1 {[%clk 0:03:45.8]} 26... a3
{[%clk 0:04:07.2]} 27. b3 {[%clk 0:03:37.1]} 27... e3 {[%clk 0:04:04.5]} 28.
Bxe3 {[%clk 0:03:34.7]} 28... Bxe3 {[%clk 0:03:58]} 29. Rxe3 {[%clk 0:03:33]}
29... Rc5 {[%clk 0:03:57.4]} 30. c4 {[%clk 0:03:31.1]} 30... Kg7 {[%clk
0:03:52.2]} 31. Rd2 {[%clk 0:03:25.7]} 31... Rh8 {[%clk 0:03:42.2]} 32. Rd7
{[%clk 0:03:24.6]} 32... Rh4 {[%clk 0:03:38.7]} 33. Re4 {[%clk 0:03:23.3]} 33...
Kf8 {[%clk 0:03:34.8]} 34. Ra7 {[%clk 0:03:18.2]} 1-0

[Event "Live Chess"]
[Site "Chess.com"]
[Date "2024.06.02"]
[Round "-"]
[White "jk0110"]
[Black "viktor_forever1994"]
[Result "0-1"]
[WhiteElo "1225"]
[BlackElo "1375"]
[TimeControl "300"]
[EndTime "16:06:59 PDT"]
[Termination "viktor_forever1994 won on time"]

1. e4 {[%clk 0:04:57.3]} 1... e5 {[%clk 0:04:59.1]} 2. d4 {[%clk 0:04:55.4]}
2... exd4 {[%clk 0:04:58.2]} 3. c3 {[%clk 0:04:53.4]} 3... Nc6 {[%clk
0:04:58.1]} 4. cxd4 {[%clk 0:04:50.8]} 4... Bb4+ {[%clk 0:04:56.7]} 5. Nc3
{[%clk 0:04:48.5]} 5... d6 {[%clk 0:04:55.2]} 6. Bc4 {[%clk 0:04:40.3]} 6... Nf6
{[%clk 0:04:53.6]} 7. a3 {[%clk 0:04:35.4]} 7... Ba5 {[%clk 0:04:50.1]} 8. b4
{[%clk 0:04:26.9]} 8... Bb6 {[%clk 0:04:48.5]} 9. Nf3 {[%clk 0:04:24]} 9... a6
{[%clk 0:04:47.2]} 10. O-O {[%clk 0:04:05.1]} 10... Bg4 {[%clk 0:04:44.3]} 11.
Bg5 {[%clk 0:03:41.6]} 11... h6 {[%clk 0:04:38.8]} 12. Bxf6 {[%clk 0:03:38.1]}
12... Qxf6 {[%clk 0:04:38.7]} 13. e5 {[%clk 0:03:25.8]} 13... dxe5 {[%clk
0:04:15.8]} 14. dxe5 {[%clk 0:03:24.1]} 14... Nxe5 {[%clk 0:04:05.5]} 15. Re1
{[%clk 0:03:02.1]} 15... O-O {[%clk 0:03:49.9]} 16. Nd5 {[%clk 0:02:40.1]} 16...
Nxf3+ {[%clk 0:03:30.5]} 17. gxf3 {[%clk 0:02:28.6]} 17... Qxf3 {[%clk
0:03:28.1]} 18. Ne7+ {[%clk 0:02:14.2]} 18... Kh8 {[%clk 0:03:23]} 19. Qc2
{[%clk 0:01:46]} 19... Qxf2+ {[%clk 0:03:15.8]} 20. Qxf2 {[%clk 0:01:41.4]}
20... Bxf2+ {[%clk 0:03:14.2]} 21. Kxf2 {[%clk 0:01:39.2]} 21... b5 {[%clk
0:03:02.1]} 22. Bb3 {[%clk 0:01:23.6]} 22... Rfe8 {[%clk 0:02:44.8]} 23. Bxf7
{[%clk 0:01:17]} 23... Rf8 {[%clk 0:02:42.3]} 24. Ng6+ {[%clk 0:01:14.3]} 24...
Kh7 {[%clk 0:02:38.7]} 25. Nxf8+ {[%clk 0:01:09.1]} 25... Rxf8 {[%clk
0:02:38.6]} 26. Kg3 {[%clk 0:01:04.1]} 26... Bc8 {[%clk 0:02:26.3]} 27. Rf1
{[%clk 0:00:54.2]} 27... Kh8 {[%clk 0:02:15.7]} 28. Bg6 {[%clk 0:00:42.8]} 28...
Rd8 {[%clk 0:02:11.1]} 29. Rad1 {[%clk 0:00:29.4]} 29... Rg8 {[%clk 0:02:02.8]}
30. Rd2 {[%clk 0:00:18.7]} 30... Bb7 {[%clk 0:01:50.1]} 31. Rdf2 {[%clk
0:00:16.7]} 31... Bd5 {[%clk 0:01:43.4]} 32. Rf8 {[%clk 0:00:14.1]} 32... Bc4
{[%clk 0:01:40.5]} 33. Rxg8+ {[%clk 0:00:10.2]} 33... Bxg8 {[%clk 0:01:40.4]}
34. Rf8 {[%clk 0:00:08.1]} 34... h5 {[%clk 0:01:36.5]} 35. Bf7 {[%clk
0:00:06.6]} 35... Kh7 {[%clk 0:01:32.6]} 36. Bxg8+ {[%clk 0:00:05]} 36... Kg6
{[%clk 0:01:31.3]} 37. Be6 {[%clk 0:00:03.2]} 37... Kg5 {[%clk 0:01:29.6]} 38.
Rf5+ {[%clk 0:00:00.7]} 38... Kg6 {[%clk 0:01:27.7]} 39. Kh4 {[%clk 0:00:00.3]}
39... Kh6 {[%clk 0:01:25.2]} 40. Rxh5+ {[%clk 0:00:00.2]} 40... Kg6 {[%clk
0:01:23.8]} 41. Rg5+ {[%clk 0:00:00.1]} 41... Kf6 {[%clk 0:01:22.6]} 0-1

[Event "Live Chess"]
[Site "Chess.com"]
[Date "2024.06.02"]
[Round "-"]
[White "CheckThis4"]
[Black "katoma"]
[Result "1-0"]
[WhiteElo "2689"]
[BlackElo "2035"]
[TimeControl "300"]
[EndTime "16:07:00 PDT"]
[Termination "CheckThis4 won by resignation"]

1. d4 {[%clk 0:04:53.5]} 1... Nf6 {[%clk 0:04:57.7]} 2. c4 {[%clk 0:04:51.9]}
2... g6 {[%clk 0:04:55.9]} 3. Nc3 {[%clk 0:04:49.1]} 3... d5 {[%clk 0:04:54.9]}
4. cxd5 {[%clk 0:04:40.6]} 4... Nxd5 {[%clk 0:04:52.5]} 5. e4 {[%clk 0:04:39.6]}
5... Nxc3 {[%clk 0:04:50.1]} 6. bxc3 {[%clk 0:04:39.5]} 6... Bg7 {[%clk
0:04:48.7]} 7. Bc4 {[%clk 0:04:38.9]} 7... c5 {[%clk 0:04:46.9]} 8. Ne2 {[%clk
0:04:37.8]} 8... Nc6 {[%clk 0:04:43.4]} 9. Be3 {[%clk 0:04:35.9]} 9... Qa5
{[%clk 0:04:38.2]} 10. O-O {[%clk 0:04:30.3]} 10... O-O {[%clk 0:04:36.4]} 11.
Rb1 {[%clk 0:04:14.3]} 11... Rd8 {[%clk 0:04:30.3]} 12. Rb5 {[%clk 0:04:07.3]}
12... Qc7 {[%clk 0:04:26]} 13. Rxc5 {[%clk 0:04:03.5]} 13... b6 {[%clk
0:04:24.8]} 14. Rd5 {[%clk 0:03:54.3]} 14... Bb7 {[%clk 0:03:46.7]} 15. Bf4
{[%clk 0:03:49.4]} 15... e5 {[%clk 0:03:38.3]} 16. Bg5 {[%clk 0:03:38.8]} 16...
Rxd5 {[%clk 0:03:28.4]} 17. Bxd5 {[%clk 0:03:37.2]} 17... exd4 {[%clk
0:03:13.3]} 18. cxd4 {[%clk 0:03:35.6]} 18... Nb4 {[%clk 0:02:41.8]} 19. Bf4
{[%clk 0:03:24.4]} 19... Qe7 {[%clk 0:02:33.7]} 20. Bxb7 {[%clk 0:03:19.8]}
20... Qxb7 {[%clk 0:02:32.1]} 21. d5 {[%clk 0:03:14.7]} 21... Nxa2 {[%clk
0:02:23.8]} 22. Qb3 {[%clk 0:03:11]} 22... Qa6 {[%clk 0:02:15.7]} 23. Ng3 {[%clk
0:03:00.9]} 23... Nc3 {[%clk 0:02:07.5]} 24. e5 {[%clk 0:02:57.8]} 24... Ne2+
{[%clk 0:01:44.2]} 25. Nxe2 {[%clk 0:02:55.7]} 25... Qxe2 {[%clk 0:01:43.1]} 26.
e6 {[%clk 0:02:41.9]} 26... fxe6 {[%clk 0:01:39.7]} 27. dxe6 {[%clk 0:02:41.8]}
27... Re8 {[%clk 0:01:29]} 28. Be3 {[%clk 0:02:33.5]} 28... Qb2 {[%clk
0:01:22.7]} 29. Qd5 {[%clk 0:02:24.7]} 29... Qe5 {[%clk 0:01:17.5]} 30. Qd7
{[%clk 0:02:06.1]} 30... Qxe6 {[%clk 0:01:13.8]} 31. Qxa7 {[%clk 0:02:04.4]}
31... b5 {[%clk 0:01:12.7]} 32. Qb7 {[%clk 0:02:01]} 32... Qe5 {[%clk
0:00:54.2]} 33. h4 {[%clk 0:01:55.3]} 33... Rb8 {[%clk 0:00:47.5]} 34. Qa7
{[%clk 0:01:40]} 34... b4 {[%clk 0:00:44.5]} 35. g3 {[%clk 0:01:38.8]} 35... b3
{[%clk 0:00:42.5]} 36. Bf4 {[%clk 0:01:37.6]} 1-0

[Event "Live Chess"]
[Site "Chess.com"]
[Date "2024.06.02"]
[Round "-"]
[White "CarmelJane"]
[Black "Sir_Sigmund"]
[Result "0-1"]
[WhiteElo "2061"]
[BlackElo "1849"]
[TimeControl "300"]
[EndTime "16:07:01 PDT"]
[Termination "Sir_Sigmund won by resignation"]

1. Nf3 {[%clk 0:04:56.1]} 1... g6 {[%clk 0:04:57.5]} 2. e4 {[%clk 0:04:53.2]}
2... Bg7 {[%clk 0:04:57.4]} 3. d4 {[%clk 0:04:52.2]} 3... d6 {[%clk 0:04:56.9]}
4. Nc3 {[%clk 0:04:51.8]} 4... Nf6 {[%clk 0:04:50.1]} 5. Bf4 {[%clk 0:04:49.8]}
5... O-O {[%clk 0:04:48.1]} 6. Qd2 {[%clk 0:04:48.9]} 6... Nc6 {[%clk
0:04:41.6]} 7. Bh6 {[%clk 0:04:46.5]} 7... e5 {[%clk 0:04:35.5]} 8. d5 {[%clk
0:04:43.7]} 8... Ne7 {[%clk 0:04:30]} 9. h4 {[%clk 0:04:40.9]} 9... Bg4 {[%clk
0:04:05.8]} 10. Be2 {[%clk 0:04:20.8]} 10... Nh5 {[%clk 0:03:50.5]} 11. Bxg7
{[%clk 0:04:12.9]} 11... Kxg7 {[%clk 0:03:41.6]} 12. Nh2 {[%clk 0:04:05.9]}
12... Bxe2 {[%clk 0:03:31.7]} 13. Qxe2 {[%clk 0:04:05.8]} 13... f5 {[%clk
0:03:24.3]} 14. O-O-O {[%clk 0:04:03.1]} 14... Nf4 {[%clk 0:03:14.5]} 15. Qf1
{[%clk 0:03:58.2]} 15... h5 {[%clk 0:02:59.9]} 16. g3 {[%clk 0:03:57.5]} 16...
fxe4 {[%clk 0:02:49.4]} 17. gxf4 {[%clk 0:03:55.7]} 17... Rxf4 {[%clk
0:02:47.9]} 18. Qg2 {[%clk 0:03:53]} 18... Nf5 {[%clk 0:02:42.8]} 19. Rhg1
{[%clk 0:03:21.8]} 19... Nxh4 {[%clk 0:02:38.4]} 20. Qh1 {[%clk 0:03:13.1]}
20... Qf6 {[%clk 0:02:31.7]} 21. Nxe4 {[%clk 0:03:08.6]} 21... Qf7 {[%clk
0:02:19.7]} 22. Ng5 {[%clk 0:03:07.9]} 22... Qf6 {[%clk 0:02:07]} 23. Ne6+
{[%clk 0:03:06.6]} 23... Kh7 {[%clk 0:02:05.6]} 24. Nxf4 {[%clk 0:03:04.3]}
24... Qxf4+ {[%clk 0:02:04.9]} 25. Kb1 {[%clk 0:03:01.1]} 25... Rf8 {[%clk
0:02:04.2]} 26. f3 {[%clk 0:02:50.4]} 26... Nf5 {[%clk 0:01:48.3]} 27. Ng4
{[%clk 0:02:41.6]} 27... Nd4 {[%clk 0:01:38.8]} 28. Qg2 {[%clk 0:02:26.7]} 28...
hxg4 {[%clk 0:01:33.7]} 29. Qxg4 {[%clk 0:02:25.1]} 29... Qxg4 {[%clk 0:01:32]}
30. fxg4 {[%clk 0:02:24.9]} 30... Rf2 {[%clk 0:01:29.8]} 31. c3 {[%clk
0:02:23.6]} 31... Nf3 {[%clk 0:01:10.7]} 32. Rh1+ {[%clk 0:02:15.5]} 32... Kg7
{[%clk 0:01:09.2]} 33. Kc1 {[%clk 0:02:06.9]} 33... Rg2 {[%clk 0:01:04.5]} 34.
Rhg1 {[%clk 0:01:55.6]} 34... Nxg1 {[%clk 0:01:01.9]} 35. a4 {[%clk 0:01:52.1]}
35... Rxg4 {[%clk 0:00:57.6]} 0-1

[Event "Live Chess"]
[Site "Chess.com"]
[Date "2024.06.02"]
[Round "-"]
[White "RichardABates"]
[Black "StoreySniper"]
[Result "1/2-1/2"]
[WhiteElo "2311"]
[BlackElo "2529"]
[TimeControl "300"]
[EndTime "16:07:07 PDT"]
[Termination "Game drawn by repetition"]

1. d4 {[%clk 0:04:58.1]} 1... g6 {[%clk 0:04:59]} 2. Nf3 {[%clk 0:04:55.2]} 2...
Bg7 {[%clk 0:04:58.4]} 3. g3 {[%clk 0:04:54.3]} 3... c5 {[%clk 0:04:57.7]} 4. c3
{[%clk 0:04:50.4]} 4... cxd4 {[%clk 0:04:56.4]} 5. cxd4 {[%clk 0:04:49.3]} 5...
d5 {[%clk 0:04:53.4]} 6. Bg2 {[%clk 0:04:47.6]} 6... Nc6 {[%clk 0:04:53]} 7. O-O
{[%clk 0:04:46.3]} 7... e6 {[%clk 0:04:51.7]} 8. Nc3 {[%clk 0:04:44.4]} 8...
Nge7 {[%clk 0:04:51.2]} 9. Bf4 {[%clk 0:04:39.9]} 9... O-O {[%clk 0:04:46]} 10.
Qd2 {[%clk 0:04:37.6]} 10... Nf5 {[%clk 0:04:43.7]} 11. Rad1 {[%clk 0:04:31.8]}
11... Ncxd4 {[%clk 0:04:37.8]} 12. Nxd4 {[%clk 0:04:22.3]} 12... Nxd4 {[%clk
0:04:34.5]} 13. e4 {[%clk 0:04:01.3]} 13... dxe4 {[%clk 0:04:25.5]} 14. Nxe4
{[%clk 0:03:52.6]} 14... e5 {[%clk 0:04:23.4]} 15. Bh6 {[%clk 0:03:46.5]} 15...
Bf5 {[%clk 0:04:07.3]} 16. Bxg7 {[%clk 0:03:23.5]} 16... Kxg7 {[%clk 0:04:06.2]}
17. f4 {[%clk 0:03:22.2]} 17... Qb6 {[%clk 0:03:46.5]} 18. Kh1 {[%clk
0:03:16.7]} 18... Rad8 {[%clk 0:03:38.5]} 19. fxe5 {[%clk 0:03:15.2]} 19... Nf3
{[%clk 0:03:17.6]} 20. Qc3 {[%clk 0:02:59.3]} 20... Rxd1 {[%clk 0:03:07.2]} 21.
Rxd1 {[%clk 0:02:57.2]} 21... Bxe4 {[%clk 0:03:02.7]} 22. Bxf3 {[%clk
0:02:51.3]} 22... Rc8 {[%clk 0:02:49.2]} 23. Qa3 {[%clk 0:02:36.7]} 23... Bxf3+
{[%clk 0:02:13.6]} 24. Qxf3 {[%clk 0:02:34.6]} 24... Rc2 {[%clk 0:02:04.7]} 25.
Rd7 {[%clk 0:02:19.3]} 25... Rc1+ {[%clk 0:02:02]} 26. Kg2 {[%clk 0:02:18]}
26... Qxb2+ {[%clk 0:02:00.7]} 27. Kh3 {[%clk 0:02:14.2]} 27... Qxa2 {[%clk
0:01:48.8]} 28. Qf6+ {[%clk 0:02:08.5]} 28... Kh6 {[%clk 0:01:48.1]} 29. Rxf7
{[%clk 0:02:00.2]} 29... Qc4 {[%clk 0:01:16]} 30. Qg7+ {[%clk 0:01:44.1]} 30...
Kg5 {[%clk 0:01:11.9]} 31. Qf6+ {[%clk 0:01:25.9]} 31... Kh6 {[%clk 0:01:10.8]}
32. e6 {[%clk 0:01:21.3]} 32... Re1 {[%clk 0:00:53.4]} 33. Qg7+ {[%clk
0:00:54.6]} 33... Kg5 {[%clk 0:00:51.9]} 34. Qf6+ {[%clk 0:00:33.3]} 34... Kh6
{[%clk 0:00:51.1]} 35. Qg7+ {[%clk 0:00:27.9]} 35... Kg5 {[%clk 0:00:50.1]} 36.
Qf6+ {[%clk 0:00:27.1]} 36... Kh6 {[%clk 0:00:49.3]} 1/2-1/2